bitfinex/quotes_BTCUSD_20250910
["timestamp","ask_amount","ask_price","bid_price","bid_amount"]
[1757511361599,0.20617841,113590.0,113580.0,0.02013928]
[1757511361821,0.51077449,113590.0,113580.0,0.02013928]
[1757511362214,0.35835841,113590.0,113580.0,0.02013928]
[1757511362454,0.51077449,113590.0,113580.0,0.02013928]
[1757511362668,0.20627841,113590.0,113580.0,0.02013928]
[1757511362872,0.54727841,113590.0,113580.0,0.02013928]
[1757511363096,0.70069449,113590.0,113580.0,0.02013928]
[1757511363529,0.54827841,113590.0,113580.0,0.02013928]
[1757511363744,0.70069449,113590.0,113580.0,0.02013928]
[1757511364173,0.54827841,113590.0,113580.0,0.02013928]
[1757511364416,0.70069449,113590.0,113580.0,0.02013928]
[1757511364861,0.75295815,113590.0,113580.0,0.02013928]
[1757511365069,0.70069449,113590.0,113580.0,0.02013928]
[1757511366147,0.52315183,113590.0,113580.0,0.11205527]
[1757511366365,0.52315183,113590.0,113580.0,0.26397527]
[1757511367219,0.17919183,113590.0,113580.0,0.26605527]
[1757511367459,0.17819183,113590.0,113580.0,0.26605527]
[1757511367678,0.00212,113590.0,113580.0,0.8421426]
[1757511367894,0.0001,113590.0,113580.0,0.8745526]
[1757511368120,0.0001,113590.0,113580.0,0.8777326]
[1757511368982,0.0001,113590.0,113580.0,0.8747526]
[1757511369198,0.18115183,113590.0,113580.0,0.66545527]
[1757511369420,0.33356791,113590.0,113580.0,0.66545527]
[1757511370479,0.18115183,113590.0,113580.0,0.66545527]
[1757511370694,0.18115183,113590.0,113580.0,0.26541527]
[1757511370902,0.38453037,113590.0,113580.0,0.26541527]
[1757511371107,0.23211429,113590.0,113580.0,0.66541527]
[1757511371346,0.33356791,113590.0,113580.0,0.66541527]
[1757511372200,0.33356791,113590.0,113580.0,0.51305527]
[1757511372403,0.33356791,113590.0,113580.0,0.26541527]
[1757511372611,0.69869449,113590.0,113580.0,0.02113928]
[1757511373268,0.85097449,113590.0,113580.0,0.02013928]
[1757511373412,0.94389048,113590.0,113580.0,0.02013928]
[1757511374230,0.94489048,113590.0,113580.0,0.02013928]
[1757511375138,1.18922255,113590.0,113580.0,0.02013928]
[1757511375357,0.51611835,113560.0,113550.0,0.0001]
[1757511375551,0.88995793,113560.0,113550.0,0.0002392]
[1757511375761,1.04735401,113560.0,113550.0,0.0002392]
[1757511376190,1.05627941,113560.0,113550.0,0.0002392]
[1757511376412,1.29092198,113560.0,113550.0,0.0002392]
[1757511376617,1.29102198,113560.0,113550.0,0.0002392]
[1757511376819,1.29102198,113560.0,113550.0,0.0012392]
[1757511377019,0.78398982,113560.0,113550.0,0.0012392]
[1757511377238,0.92746641,113560.0,113550.0,0.0012392]
[1757511377852,0.92746641,113560.0,113550.0,0.0002392]
[1757511378087,0.93046641,113560.0,113550.0,0.0002392]
[1757511378555,0.77826641,113560.0,113550.0,0.0002392]
[1757511378778,0.86294641,113560.0,113550.0,0.0002392]
[1757511379048,0.9568624,113560.0,113550.0,0.0002392]
[1757511379465,1.10927848,113560.0,113550.0,0.0002392]
[1757511379890,1.17680809,113560.0,113550.0,0.0002392]
[1757511380071,1.26872408,113560.0,113550.0,0.0002392]
[1757511380476,1.29516415,113560.0,113550.0,0.0002392]
[1757511382158,1.29516415,113560.0,113510.0,0.0001]
[1757511382159,0.1761804,113520.0,113510.0,0.0001]
[1757511382385,0.88119759,113520.0,113510.0,0.0001]
[1757511382611,0.5413225,113510.0,113500.0,0.0003]
[1757511382901,0.6936425,113510.0,113500.0,0.0003]
[1757511383114,0.00202,113510.0,113500.0,0.09221599]
[1757511383360,0.00498,113510.0,113500.0,0.26842744]
[1757511383575,0.00498,113510.0,113500.0,0.26889178]
[1757511383780,0.00508,113510.0,113500.0,0.26889178]
[1757511384489,0.0720516,113510.0,113500.0,0.26889178]
[1757511384690,0.00212,113510.0,113500.0,0.26889178]
[1757511384925,0.37819453,113520.0,113510.0,0.17619592]
[1757511385153,0.36512658,113530.0,113520.0,0.1761804]
[1757511385375,0.03010658,113530.0,113520.0,0.1761804]
[1757511385598,0.22267555,113530.0,113510.0,0.45192191]
[1757511385820,0.0885595,113530.0,113510.0,0.45192191]
[1757511386032,0.01852394,113530.0,113520.0,0.26809639]
[1757511386451,0.00508,113530.0,113520.0,0.26809639]
[1757511386891,0.0001,113530.0,113520.0,0.27017639]
[1757511387152,0.00212,113530.0,113520.0,0.30158639]
[1757511387365,0.0001,113530.0,113520.0,0.30358639]
[1757511388123,0.0001,113530.0,113520.0,0.37140639]
[1757511388323,0.0001,113530.0,113520.0,0.57140639]
[1757511388760,0.0001,113530.0,113520.0,0.97140639]
[1757511389225,0.0001,113530.0,113520.0,1.17140639]
[1757511389864,0.0001,113530.0,113520.0,1.16822639]
[1757511390954,0.00521,113530.0,113520.0,0.56355599]
[1757511391385,0.33379097,113530.0,113520.0,0.56355599]
[1757511391593,0.3864256,113530.0,113520.0,0.49591599]
[1757511391823,0.7264256,113530.0,113520.0,0.49591599]
[1757511392036,0.57400952,113530.0,113520.0,0.64843599]
[1757511393105,0.59039027,113530.0,113520.0,0.64843599]
[1757511396967,0.59039027,113530.0,113520.0,0.82461639]
[1757511396968,0.34221,113530.0,113520.0,0.82461639]
[1757511397212,0.52137489,113530.0,113520.0,0.64843599]
[1757511397424,0.53776132,113530.0,113520.0,0.64843599]
[1757511399028,0.53776132,113530.0,113520.0,0.24843599]
[1757511399499,0.53776132,113530.0,113520.0,0.64843599]
[1757511399725,0.53776132,113530.0,113520.0,0.24843599]
[1757511400440,0.02159643,113530.0,113520.0,0.42461639]
[1757511400694,0.19476132,113530.0,113520.0,0.24843599]
[1757511400985,0.01859643,113530.0,113520.0,0.42670639]
[1757511401217,0.0001,113530.0,113520.0,0.46116639]
[1757511401909,0.01652173,113530.0,113520.0,0.12923599]
[1757511402125,0.21736381,113530.0,113520.0,0.24835599]
[1757511402628,0.45517767,113530.0,113520.0,0.24831599]
[1757511402870,0.48030425,113530.0,113520.0,0.1564]
[1757511403104,0.48030425,113530.0,113520.0,0.15644]
[1757511403105,0.82030425,113530.0,113520.0,0.15644]
[1757511403657,0.82030425,113530.0,113520.0,0.15444]
[1757511403890,0.58249039,113530.0,113520.0,0.15444]
[1757511404108,0.5629232,113530.0,113520.0,0.15244]
[1757511404336,0.80073706,113530.0,113520.0,0.15244]
[1757511405518,0.80073706,113530.0,113520.0,0.001]
[1757511405733,0.80073706,113530.0,113520.0,0.002]
[1757511405942,0.89265305,113530.0,113520.0,0.001]
[1757511406803,0.54130698,113520.0,113510.0,0.15232]
[1757511407015,0.79854257,113520.0,113510.0,0.15232]
[1757511407215,0.80065257,113520.0,113510.0,0.15232]
[1757511407752,0.56283871,113520.0,113510.0,0.15232]
[1757511407960,0.88375453,113520.0,113510.0,0.15232]
[1757511408281,0.88385453,113520.0,113510.0,0.15232]
[1757511409300,0.5413225,113510.0,113500.0,0.06840434]
[1757511409501,0.79855809,113510.0,113500.0,0.00076434]
[1757511409742,0.80066809,113510.0,113500.0,0.00076434]
[1757511409939,0.89258408,113510.0,113500.0,0.15312434]
[1757511410351,1.04494408,113510.0,113500.0,0.00076434]
[1757511410738,1.04500408,113510.0,113500.0,0.00276434]
[1757511411281,1.04500408,113510.0,113500.0,0.00076434]
[1757511411443,0.56295423,113510.0,113500.0,0.00076434]
[1757511411772,0.86561979,113510.0,113500.0,0.00176434]
[1757511412540,0.86561979,113510.0,113500.0,0.00076434]
[1757511412887,0.86561979,113510.0,113500.0,0.00176434]
[1757511413229,0.86561979,113510.0,113500.0,0.00076434]
[1757511413461,0.95753578,113510.0,113500.0,0.00076434]
[1757511413860,0.94111405,113510.0,113500.0,0.00076434]
[1757511414064,0.957588,113510.0,113500.0,0.00076434]
[1757511414695,1.04950399,113510.0,113500.0,0.00076434]
[1757511414892,1.07888903,113510.0,113500.0,0.00076434]
[1757511415724,0.57072307,113500.0,113490.0,0.0002]
[1757511415959,1.16104286,113500.0,113490.0,0.0002]
[1757511416161,1.13376782,113500.0,113490.0,0.0002]
[1757511416310,0.20135356,113490.0,113480.0,0.0002]
[1757511416503,0.79564137,113490.0,113480.0,0.00024646]
[1757511416704,0.80075137,113490.0,113480.0,0.00024646]
[1757511416906,0.51625804,113470.0,113460.0,0.0003]
[1757511417187,0.7540719,113470.0,113460.0,0.00034625]
[1757511417390,0.78130848,113470.0,113460.0,0.00034625]
[1757511417678,0.78430848,113470.0,113460.0,0.00034625]
[1757511418513,0.78430848,113470.0,113460.0,0.15238625]
[1757511418713,0.87622447,113470.0,113460.0,0.15238625]
[1757511419170,0.94351035,113470.0,113460.0,0.15238625]
[1757511419738,0.94361035,113470.0,113460.0,0.15238625]
[1757511419949,0.94361035,113470.0,113460.0,0.15338625]
[1757511420973,0.6138805,113470.0,113460.0,0.15338625]
[1757511421390,0.24364392,113470.0,113460.0,0.42355581]
[1757511421831,0.06738588,113470.0,113460.0,0.42355581]
[1757511422040,0.0001,113470.0,113460.0,0.45566581]
[1757511422456,0.0001,113470.0,113460.0,0.45872581]
[1757511422872,0.0001,113470.0,113460.0,0.85872581]
[1757511423289,0.0001,113470.0,113460.0,0.85862581]
[1757511423913,0.0001,113470.0,113460.0,0.85750581]
[1757511424336,0.0001,113470.0,113460.0,0.86150581]
[1757511424757,0.0001,113470.0,113460.0,0.85750581]
[1757511424963,0.0001,113470.0,113460.0,1.25750581]
[1757511425168,0.0001,113470.0,113460.0,1.52470581]
[1757511425379,0.0001,113470.0,113460.0,1.53170581]
[1757511425588,0.0001,113470.0,113460.0,1.60450581]
[1757511426008,0.0001,113470.0,113460.0,1.60250581]
[1757511427255,0.0001,113470.0,113460.0,1.60950581]
[1757511427466,0.0001,113470.0,113460.0,1.45758581]
[1757511427692,0.0001,113470.0,113460.0,1.45058581]
[1757511427904,0.0001,113470.0,113460.0,1.39750581]
[1757511428117,0.0001,113470.0,113460.0,1.40550581]
[1757511428594,0.0011,113470.0,113460.0,1.41150581]
[1757511428802,0.0011,113470.0,113460.0,1.25958581]
[1757511429017,0.0011,113470.0,113460.0,1.41150581]
[1757511429859,0.0011,113470.0,113460.0,1.41146581]
[1757511430486,0.0011,113470.0,113460.0,1.21146581]
[1757511430691,0.0011,113470.0,113460.0,1.41146581]
[1757511431919,0.0011,113470.0,113460.0,1.67866581]
[1757511433842,0.0011,113470.0,113460.0,1.41146581]
[1757511434051,0.0011,113470.0,113460.0,1.48967461]
[1757511434480,0.0011,113470.0,113460.0,1.08967461]
[1757511434737,0.0001,113500.0,113490.0,0.37622698]
[1757511434967,0.0001,113500.0,113490.0,1.49946297]
[1757511435196,0.0001,113500.0,113490.0,1.50144297]
[1757511435454,0.0001,113500.0,113490.0,1.53661297]
[1757511435690,0.0001,113500.0,113490.0,1.68661297]
[1757511435915,0.0001,113500.0,113490.0,1.68961297]
[1757511436357,0.0001,113500.0,113490.0,1.68957297]
[1757511436992,0.0001,113500.0,113490.0,2.02957297]
[1757511437405,0.0001,113500.0,113490.0,2.02953297]
[1757511437661,0.0001,113500.0,113490.0,2.04231669]
[1757511438141,0.0001,113500.0,113490.0,1.64235669]
[1757511438363,0.0001,113500.0,113490.0,1.84235669]
[1757511439549,0.0001,113500.0,113490.0,0.49488971]
[1757511439816,0.75921531,113500.0,113490.0,0.09891599]
[1757511440028,0.70558003,113500.0,113490.0,0.007]
[1757511440239,0.87625788,113500.0,113490.0,0.007]
[1757511440635,0.54652803,113500.0,113490.0,0.007]
[1757511440890,0.54652803,113500.0,113490.0,0.15524]
[1757511441125,0.54652803,113500.0,113490.0,0.24415599]
[1757511441126,0.51837145,113500.0,113490.0,0.24415599]
[1757511441341,0.52140145,113500.0,113490.0,0.25015599]
[1757511441563,0.61331744,113500.0,113490.0,0.25015599]
[1757511441769,0.8511313,113500.0,113490.0,0.24715599]
[1757511441982,0.75921531,113500.0,113490.0,0.24615599]
[1757511442200,0.52140145,113500.0,113490.0,0.24815599]
[1757511442428,0.75921531,113500.0,113490.0,0.24815599]
[1757511443446,0.82624564,113500.0,113490.0,0.24815599]
[1757511444903,0.85137222,113500.0,113490.0,0.004]
[1757511445112,0.94328821,113500.0,113490.0,0.004]
[1757511445764,1.09540821,113500.0,113490.0,0.004]
[1757511446426,1.16308821,113500.0,113490.0,0.004]
[1757511446650,1.16308821,113500.0,113460.0,0.00024625]
[1757511446651,0.17625804,113470.0,113460.0,0.00024625]
[1757511446863,0.4140719,113470.0,113460.0,0.15280224]
[1757511447066,0.47777738,113470.0,113460.0,0.15280224]
[1757511447277,0.48080738,113470.0,113460.0,0.15280224]
[1757511448382,0.17635804,113470.0,113460.0,0.15478224]
[1757511448602,0.24334664,113470.0,113460.0,0.15478224]
[1757511448845,0.24334664,113470.0,113460.0,0.15778224]
[1757511449053,0.24334664,113470.0,113460.0,0.16078224]
[1757511450399,0.24334664,113470.0,113460.0,0.19126224]
[1757511450575,0.24334664,113470.0,113460.0,0.36753581]
[1757511450811,0.24334664,113470.0,113460.0,0.37054581]
[1757511451238,0.0001,113470.0,113460.0,0.37054581]
[1757511451677,0.0001,113470.0,113460.0,0.57054581]
[1757511452315,0.0001,113470.0,113460.0,0.91054581]
[1757511452737,0.0001,113470.0,113460.0,0.84990581]
[1757511452946,0.0001,113470.0,113460.0,1.00206581]
[1757511453157,0.0001,113470.0,113460.0,0.64990581]
[1757511453364,0.0001,113470.0,113460.0,0.13363224]
[1757511453582,0.0001,113470.0,113460.0,0.12762224]
[1757511453583,0.4141719,113470.0,113460.0,0.12762224]
[1757511453797,0.23752981,113470.0,113460.0,0.27982224]
[1757511454023,0.23752981,113470.0,113460.0,0.46009581]
[1757511454250,0.17848804,113470.0,113460.0,0.46009581]
[1757511454497,0.0001,113470.0,113460.0,0.46010581]
[1757511454951,0.0001,113470.0,113460.0,0.45910581]
[1757511455192,0.0001,113470.0,113460.0,0.46310581]
[1757511455381,0.0001,113470.0,113460.0,0.66010581]
[1757511455897,0.0001,113470.0,113460.0,0.66210581]
[1757511456824,0.0001,113470.0,113460.0,1.34810581]
[1757511457069,0.0001,113470.0,113460.0,1.35010581]
[1757511457761,1e-08,113470.0,113460.0,1.84810581]
[1757511458003,1e-08,113470.0,113460.0,1.5309139]
[1757511458209,1e-08,113470.0,113460.0,1.5340739]
[1757511458421,1e-08,113470.0,113460.0,1.9340739]
[1757511458633,1e-08,113470.0,113460.0,1.7827139]
[1757511458844,1e-08,113470.0,113460.0,1.9350739]
[1757511460170,0.07051254,113510.0,113490.0,0.05]
[1757511460383,0.07051254,113530.0,113520.0,1.0661804]
[1757511460602,0.07051254,113530.0,113520.0,1.34605639]
[1757511460814,0.07051254,113530.0,113520.0,1.34617639]
[1757511461021,1.0001,113550.0,113540.0,0.57614937]
[1757511461234,1.0001,113550.0,113540.0,0.89033536]
[1757511461411,1.0001,113550.0,113540.0,0.77138536]
[1757511461610,1.0001,113550.0,113540.0,1.32378536]
[1757511461860,1.00056408,113550.0,113540.0,1.66378536]
[1757511462063,1.00056408,113550.0,113540.0,1.82260835]
[1757511463122,1.00056408,113550.0,113540.0,1.67020835]
[1757511463327,1.00056408,113550.0,113540.0,1.82256835]
[1757511463884,1.00056408,113550.0,113540.0,1.82556835]
[1757511465451,0.38350065,113550.0,113540.0,1.47556835]
[1757511465677,0.32802322,113550.0,113540.0,1.52556835]
[1757511466068,0.32802322,113550.0,113540.0,1.92556835]
[1757511466265,0.32812322,113550.0,113540.0,1.92556835]
[1757511466498,0.07061254,113600.0,113590.0,0.2]
[1757511466668,0.24680808,113600.0,113590.0,0.35955599]
[1757511466948,0.24680808,113600.0,113590.0,0.54751599]
[1757511467198,0.24680808,113600.0,113590.0,0.75955599]
[1757511467425,0.4015506,113600.0,113590.0,0.55955599]
[1757511467637,0.4045706,113600.0,113590.0,0.71187599]
[1757511467861,0.4045706,113600.0,113590.0,0.56155599]
[1757511468100,0.69918464,113600.0,113590.0,0.06964]
[1757511468326,0.69918464,113600.0,113590.0,0.002]
[1757511468547,0.20121391,113580.0,113570.0,0.4]
[1757511468762,0.35897643,113580.0,113570.0,0.55236]
[1757511468980,0.20636391,113580.0,113570.0,0.55244]
[1757511469425,0.69897643,113580.0,113570.0,0.15244]
[1757511470094,0.17611835,113560.0,113550.0,0.46764]
[1757511470327,0.17824835,113560.0,113550.0,0.71195599]
[1757511470547,0.32873087,113560.0,113550.0,0.71410599]
[1757511471220,0.32883087,113560.0,113550.0,0.71195599]
[1757511471440,0.33412,113560.0,113550.0,0.55955599]
[1757511471679,0.33412,113560.0,113550.0,0.71191599]
[1757511472112,0.17635748,113560.0,113550.0,0.71191599]
[1757511472334,0.00323913,113560.0,113550.0,0.92368985]
[1757511472564,0.00323913,113560.0,113550.0,0.90368985]
[1757511473026,0.00323913,113560.0,113550.0,1.10368985]
[1757511474801,0.00323913,113560.0,113550.0,1.10468985]
[1757511475196,0.00023913,113560.0,113550.0,1.10468985]
[1757511475551,0.32897,113560.0,113550.0,0.57318599]
[1757511475776,0.17848748,113560.0,113550.0,0.69295599]
[1757511475983,0.3331,113560.0,113550.0,0.86908985]
[1757511476415,0.3331,113560.0,113550.0,0.86808985]
[1757511476630,0.3331,113560.0,113550.0,0.69295599]
[1757511476849,0.32897,113560.0,113550.0,0.69510599]
[1757511477289,0.33197,113560.0,113550.0,0.87023985]
[1757511477731,0.33197,113560.0,113550.0,0.69410599]
[1757511478233,0.33197,113560.0,113550.0,0.87023985]
[1757511478449,0.33197,113560.0,113550.0,0.69410599]
[1757511479130,0.334,113560.0,113550.0,0.53955599]
[1757511479378,0.17635748,113560.0,113550.0,0.69383599]
[1757511479592,0.00323913,113560.0,113550.0,0.86996985]
[1757511479799,0.17935748,113560.0,113550.0,0.90755985]
[1757511480001,0.17935748,113560.0,113550.0,0.73142599]
[1757511480211,0.00323913,113560.0,113550.0,0.90755985]
[1757511480419,0.00023913,113560.0,113550.0,0.90755985]
[1757511480633,0.00423913,113560.0,113550.0,0.90755985]
[1757511480845,0.00423913,113560.0,113550.0,1.10755985]
[1757511481660,0.00423913,113560.0,113550.0,1.44755985]
[1757511482070,0.00423913,113560.0,113550.0,1.59755985]
[1757511482273,0.00023913,113560.0,113550.0,1.59755985]
[1757511482695,0.00323913,113560.0,113550.0,1.59755985]
[1757511482901,0.00023913,113560.0,113550.0,1.59755985]
[1757511483119,0.00023913,113560.0,113550.0,1.59871985]
[1757511483361,0.00023913,113560.0,113550.0,1.44727985]
[1757511483566,0.00023913,113560.0,113550.0,1.59971985]
[1757511483772,0.00023913,113560.0,113550.0,1.59871985]
[1757511483975,0.00023913,113560.0,113550.0,1.60171985]
[1757511484176,0.00023913,113560.0,113550.0,1.60103985]
[1757511484589,0.00023913,113560.0,113550.0,1.44527985]
[1757511484796,0.00023913,113560.0,113550.0,1.59799985]
[1757511484999,0.00023913,113560.0,113550.0,1.44727985]
[1757511485205,0.00023913,113560.0,113550.0,1.44999985]
[1757511485848,0.00023913,113560.0,113550.0,1.45099985]
[1757511486279,0.15285165,113560.0,113550.0,1.11003985]
[1757511486487,0.15285165,113560.0,113550.0,0.95527985]
[1757511486697,0.00223913,113560.0,113550.0,1.10795985]
[1757511486905,0.00223913,113560.0,113550.0,1.11095985]
[1757511487322,0.00223913,113560.0,113550.0,1.10795985]
[1757511487534,0.00223913,113560.0,113550.0,1.17048545]
[1757511487740,0.00223913,113560.0,113550.0,1.17148545]
[1757511487946,0.00223913,113560.0,113550.0,1.32148545]
[1757511488162,0.00223913,113560.0,113550.0,1.32048545]
[1757511488377,0.00223913,113560.0,113550.0,1.66048545]
[1757511488582,0.00223913,113560.0,113550.0,1.86248545]
[1757511489202,0.00023913,113560.0,113550.0,1.79995985]
[1757511489428,0.00023913,113560.0,113550.0,1.86248639]
[1757511490291,0.00023913,113560.0,113550.0,1.87916865]
[1757511490510,0.00023913,113560.0,113550.0,1.87716865]
[1757511490718,0.00023913,113560.0,113550.0,1.87916865]
[1757511490918,0.00023913,113560.0,113550.0,1.88016865]
[1757511492493,0.00023913,113560.0,113550.0,1.87916865]
[1757511492836,0.00023913,113560.0,113550.0,1.88016865]
[1757511493997,0.00023913,113560.0,113550.0,1.72448865]
[1757511494204,0.00023913,113560.0,113550.0,0.81107479]
[1757511494447,0.33106,113560.0,113550.0,0.54555599]
[1757511494648,0.33106,113560.0,113550.0,0.69627599]
[1757511494852,0.33106,113560.0,113550.0,0.7590282]
[1757511495056,0.33106,113560.0,113550.0,0.87240985]
[1757511495270,0.15285165,113560.0,113550.0,0.87440985]
[1757511495466,0.00023913,113560.0,113550.0,0.91199985]
[1757511495669,0.00023913,113560.0,113550.0,0.99020865]
[1757511496041,0.00023913,113560.0,113550.0,1.52720865]
[1757511496245,8.821e-05,113560.0,113550.0,1.60099985]
[1757511496453,8.821e-05,113560.0,113550.0,1.71066758]
[1757511496658,8.821e-05,113560.0,113550.0,1.70766758]
[1757511497030,8.821e-05,113560.0,113550.0,1.70966758]
[1757511498456,8.821e-05,113560.0,113550.0,1.64999985]
[1757511498657,0.07051254,113600.0,113590.0,0.37607183]
[1757511498865,0.07065183,113600.0,113590.0,0.75117245]
[1757511499103,0.00013929,113600.0,113590.0,0.79076245]
[1757511499404,0.00013929,113600.0,113590.0,1.12797782]
[1757511499613,0.00013929,113600.0,113590.0,1.19076245]
[1757511500013,0.00213929,113600.0,113590.0,1.19076245]
[1757511500390,0.33489814,113600.0,113590.0,0.75951599]
[1757511500595,0.33489814,113600.0,113590.0,0.55951599]
[1757511500784,0.33583814,113600.0,113590.0,0.71255599]
[1757511501203,0.33583814,113600.0,113590.0,0.71355599]
[1757511501635,0.15978181,113600.0,113590.0,0.88962782]
[1757511501881,0.15475181,113600.0,113590.0,0.92921782]
[1757511502082,0.00213929,113600.0,113590.0,0.99200245]
[1757511502236,0.15475181,113600.0,113590.0,0.92921782]
[1757511502436,0.33289814,113600.0,113590.0,0.56051599]
[1757511502640,0.33289814,113600.0,113590.0,0.71355599]
[1757511503720,0.33289814,113600.0,113590.0,0.88962782]
[1757511503931,0.15475181,113600.0,113590.0,0.89483782]
[1757511504168,0.00213929,113600.0,113590.0,1.12921782]
[1757511504575,0.00213929,113600.0,113590.0,1.68200245]
[1757511504782,0.0004,113610.0,113600.0,0.71605633]
[1757511504991,0.0004,113610.0,113600.0,1.06147133]
[1757511505201,0.0004,113610.0,113600.0,1.06347133]
[1757511505400,0.0004,113610.0,113600.0,0.91031133]
[1757511505981,0.0004,113610.0,113600.0,1.06559133]
[1757511506445,0.0004,113610.0,113600.0,1.46559133]
[1757511506855,0.0004,113610.0,113600.0,1.46359133]
[1757511507153,0.0004,113610.0,113600.0,1.46559133]
[1757511508011,0.0004,113610.0,113600.0,1.46359133]
[1757511508445,0.0004,113610.0,113600.0,1.31331133]
[1757511508655,0.0004,113610.0,113600.0,1.46659133]
[1757511509088,0.0004,113610.0,113600.0,1.31431133]
[1757511509287,0.15301252,113610.0,113600.0,1.31431133]
[1757511509520,0.15301252,113610.0,113600.0,1.46655133]
[1757511509703,0.15301252,113610.0,113600.0,1.40380232]
[1757511509922,0.15301252,113610.0,113600.0,1.40580232]
[1757511509923,0.0004,113610.0,113600.0,1.40580232]
[1757511510132,0.0004,113610.0,113600.0,1.40280232]
[1757511510822,0.0004,113610.0,113600.0,1.40080232]
[1757511511230,0.0014,113610.0,113600.0,1.40080232]
[1757511511466,0.0014,113610.0,113600.0,1.46355133]
[1757511512698,0.0014,113610.0,113600.0,1.40068232]
[1757511512952,0.0014,113610.0,113600.0,1.24856232]
[1757511513137,0.0014,113610.0,113600.0,1.40164232]
[1757511513349,0.0004,113610.0,113600.0,1.40060232]
[1757511513550,0.0004,113610.0,113600.0,1.40160232]
[1757511513753,0.0004,113610.0,113600.0,1.40260232]
[1757511513929,0.0004,113610.0,113600.0,1.40160232]
[1757511514155,0.0004,113610.0,113600.0,1.40060232]
[1757511514296,0.0004,113610.0,113600.0,1.46535133]
[1757511514504,0.0004,113610.0,113600.0,1.46435133]
[1757511514939,0.0014,113610.0,113600.0,1.46435133]
[1757511515343,0.0014,113610.0,113600.0,1.40160232]
[1757511515938,0.0014,113610.0,113600.0,1.47908311]
[1757511516466,0.0004,113610.0,113600.0,1.67908311]
[1757511516875,0.0004,113610.0,113600.0,1.68008311]
[1757511517576,0.0004,113610.0,113600.0,1.68108311]
[1757511517785,0.0004,113610.0,113600.0,1.60260232]
[1757511519069,0.0004,113610.0,113600.0,1.44956232]
[1757511519274,0.0004,113610.0,113600.0,1.60276232]
[1757511521674,0.15301252,113610.0,113600.0,1.25959232]
[1757511521899,0.15301252,113610.0,113600.0,1.32225321]
[1757511522116,0.0004,113610.0,113600.0,1.32548321]
[1757511522328,0.0004,113610.0,113600.0,1.26282232]
[1757511522541,0.0004,113610.0,113600.0,1.68130311]
[1757511522968,0.0004,113610.0,113600.0,1.60282232]
[1757511523394,0.00014027,113610.0,113600.0,1.20282232]
[1757511523820,0.00014027,113610.0,113600.0,1.56854232]
[1757511524045,0.00014027,113610.0,113600.0,1.52778042]
[1757511524257,0.00014027,113610.0,113600.0,1.32778042]
[1757511524470,0.00014027,113610.0,113600.0,1.48122042]
[1757511525555,0.00014027,113610.0,113600.0,1.40292232]
[1757511526411,0.00014027,113610.0,113600.0,1.51279542]
[1757511528756,0.0004,113620.0,113610.0,0.66604084]
[1757511528963,0.0004,113620.0,113610.0,1.02705807]
[1757511529176,0.0004,113620.0,113610.0,1.02901807]
[1757511529600,0.0004,113620.0,113610.0,1.02897807]
[1757511530056,0.0004,113620.0,113610.0,1.02907807]
[1757511530693,0.0004,113650.0,113640.0,0.17599436]
[1757511530900,0.00053926,113650.0,113640.0,0.90211027]
[1757511531074,0.23789807,113650.0,113640.0,0.90187035]
[1757511531352,0.00053926,113650.0,113640.0,0.93605035]
[1757511531774,0.00053926,113650.0,113640.0,0.93928035]
[1757511531991,0.23789807,113650.0,113640.0,1.33928035]
[1757511532428,0.00253926,113650.0,113640.0,1.33928035]
[1757511532857,0.00553926,113650.0,113640.0,1.33928035]
[1757511533275,0.00253926,113650.0,113640.0,1.33928035]
[1757511533484,0.23989807,113650.0,113640.0,1.33928035]
[1757511533720,0.24089807,113650.0,113640.0,1.33928035]
[1757511533871,0.24089807,113650.0,113640.0,1.33605035]
[1757511534072,0.24089807,113650.0,113640.0,1.18281035]
[1757511534306,0.24089807,113650.0,113640.0,1.33597035]
[1757511534512,0.24089807,113650.0,113640.0,1.33585035]
[1757511534513,0.00353926,113650.0,113640.0,1.33585035]
[1757511534875,0.24089807,113650.0,113640.0,1.33908035]
[1757511535298,0.00353926,113650.0,113640.0,1.18604035]
[1757511535523,0.00353926,113650.0,113640.0,1.33912035]
[1757511535969,0.24089807,113650.0,113640.0,1.33589035]
[1757511536594,0.24089807,113650.0,113640.0,1.33912035]
[1757511536770,0.00353926,113650.0,113640.0,1.33912035]
[1757511537303,0.42210695,113650.0,113640.0,0.77067599]
[1757511537924,0.42210695,113650.0,113640.0,0.71247599]
[1757511538488,0.42210695,113650.0,113640.0,0.55947599]
[1757511538696,0.42210695,113650.0,113640.0,0.71247599]
[1757511538902,0.42210695,113650.0,113640.0,0.55947599]
[1757511538903,0.51214386,113650.0,113640.0,0.55947599]
[1757511539105,0.51214386,113650.0,113640.0,0.46756]
[1757511539280,1.08950267,113650.0,113640.0,0.22048]
[1757511539478,0.85214386,113650.0,113640.0,0.22048]
[1757511539750,1.08950267,113650.0,113640.0,0.22048]
[1757511540087,0.17600985,113630.0,113620.0,0.06766]
[1757511540271,0.17600985,113630.0,113620.0,0.22058]
[1757511540272,0.41336866,113630.0,113620.0,0.22058]
[1757511540473,0.41552866,113630.0,113620.0,0.22058]
[1757511540602,0.18130985,113630.0,113620.0,0.22058]
[1757511540813,0.41866866,113630.0,113620.0,0.22058]
[1757511541012,0.41866866,113630.0,113620.0,0.31249599]
[1757511541273,0.41866866,113630.0,113620.0,0.22058]
[1757511541916,0.0053,113630.0,113620.0,0.22058]
[1757511542124,0.41552866,113630.0,113620.0,0.48852133]
[1757511542295,0.41652866,113630.0,113620.0,0.48852133]
[1757511542680,0.41436866,113630.0,113620.0,0.52216133]
[1757511542887,0.41436866,113630.0,113620.0,0.58484927]
[1757511543089,0.41652866,113630.0,113620.0,0.58484927]
[1757511543288,0.41966866,113630.0,113620.0,0.31249599]
[1757511543501,0.17700985,113630.0,113620.0,0.55316927]
[1757511543702,0.41652866,113630.0,113620.0,0.55316927]
[1757511543842,0.24051881,113630.0,113620.0,0.55316927]
[1757511544053,0.001,113630.0,113620.0,0.58484927]
[1757511544257,0.001,113630.0,113620.0,0.78803927]
[1757511544466,0.001,113630.0,113620.0,1.06535133]
[1757511544678,0.001,113630.0,113620.0,1.14372257]
[1757511544885,0.00053926,113650.0,113640.0,0.37599436]
[1757511545242,0.00053926,113650.0,113640.0,0.62095035]
[1757511545445,0.00053926,113650.0,113640.0,0.62291035]
[1757511545623,0.00053926,113650.0,113640.0,0.65459035]
[1757511545838,0.00053926,113650.0,113640.0,1.1205523]
[1757511547289,0.00053926,113650.0,113640.0,1.1291689]
[1757511547862,0.00053926,113650.0,113640.0,1.1205123]
[1757511548069,0.00053926,113650.0,113640.0,0.9173223]
[1757511548236,0.23789807,113650.0,113640.0,0.9173223]
[1757511548439,0.23789807,113650.0,113640.0,0.9172023]
[1757511548627,0.24005807,113650.0,113640.0,0.9172023]
[1757511549029,0.23789807,113650.0,113640.0,0.9172023]